bitfinex-derivatives/quotes_ETHF0:USTF0_20250607
["timestamp","ask_amount","ask_price","bid_price","bid_amount"]
[1749278543394,5.27924456,2491.0,2490.9,3.28e-06]
[1749278550995,0.80247,2490.8,2490.7,0.68502494]
[1749278551192,2.07155456,2490.8,2490.7,1.96722494]
[1749278553298,2.07155456,2490.8,2490.7,0.68502494]
[1749278553600,0.80259,2490.4,2490.3,5.961]
[1749278554105,2.07167456,2490.4,2490.3,5.961]
[1749278557604,0.80259,2490.4,2490.3,5.961]
[1749278557904,2.0749585,2490.4,2490.3,5.961]
[1749278558709,0.80259,2490.4,2490.3,5.961]
[1749278560412,0.80259,2490.4,2490.3,1.322]
[1749278565819,0.80263,2490.3,2490.2,0.6421]
[1749278566010,2.07387981,2490.3,2490.2,0.6421]
[1749278566412,2.07387981,2490.3,2490.2,2.0315]
[1749278568116,0.80263,2490.3,2490.2,2.0315]
[1749278568416,2.07353532,2490.3,2490.2,2.0315]
[1749278569517,2.07353532,2490.3,2490.2,2.10101834]
[1749278571320,0.80263,2490.3,2490.2,2.10101834]
[1749278572522,4.01033,2490.5,2490.3,0.80256]
[1749278572823,4.01033,2490.5,2490.4,0.6728]
[1749278573322,4.01033,2490.5,2490.4,1.9439]
[1749278573914,0.8025,2490.6,2490.4,10.95425]
[1749278574117,0.8025,2490.6,2490.5,5.9041]
[1749278574325,0.80246,2490.7,2490.5,6.70662]
[1749278574522,0.80246,2490.7,2490.6,2.0172]
[1749278574924,0.651,2491.1,2490.6,2.0172]
[1749278575117,0.80242,2490.8,2490.7,4.5866]
[1749278575626,0.80241,2490.9,2490.7,10.38905]
[1749278575827,0.80241,2490.9,2490.8,6.0118]
[1749278576025,0.80238,2491.0,2490.8,6.0118]
[1749278576223,0.80235,2491.1,2490.9,2.0458]
[1749278576431,0.80235,2491.1,2491.0,1.3788]
[1749278576637,0.80235,2491.1,2491.0,2.0172]
[1749278576924,2.0059,2491.0,2490.2,0.06951834]
[1749278577225,0.80255,2490.4,2490.3,0.6384]
[1749278577627,0.80258,2490.3,2490.2,0.06951834]
[1749278577822,5.39228,2490.3,2490.2,0.06951834]
[1749278578128,6.66221,2490.3,2490.2,0.06951834]
[1749278578323,2.18448,2490.3,2490.2,2.10861834]
[1749278578725,0.80258,2490.3,2490.2,2.10861834]
[1749278580432,0.80258,2490.3,2490.2,0.74751834]
[1749278584831,0.80257,2490.4,2490.2,0.74751834]
[1749278585028,0.80258,2490.3,2490.2,0.74751834]
[1749278585224,0.80258,2490.3,2490.2,2.02891834]
[1749278586034,1.49783,2490.5,2490.2,2.83151834]
[1749278586237,0.80253,2490.5,2490.3,1.2814]
[1749278589131,0.80255,2490.4,2490.3,1.2814]
[1749278600845,0.80255,2490.4,2490.3,1.35091834]
[1749278603244,0.80255,2490.4,2490.3,2.15349834]
[1749278603544,0.80253,2490.5,2490.3,1.35091834]
[1749278604446,0.80255,2490.4,2490.3,1.35091834]
[1749278605339,0.80255,2490.4,2490.3,2.15347834]
[1749278605841,0.80254,2490.5,2490.3,1.35091834]
[1749278606045,0.80254,2490.5,2490.3,2.15347834]
[1749278607052,0.80255,2490.5,2490.3,2.15347834]
[1749278612352,0.6659,2490.6,2490.3,0.06951834]
[1749278612547,0.80255,2490.4,2490.3,0.06951834]
[1749278612747,2.07292698,2490.4,2490.3,0.06951834]
[1749278612947,2.71962698,2490.4,2490.3,0.06951834]
[1749278616650,2.71962698,2490.4,2490.3,0.87209834]
[1749278616853,2.71962698,2490.4,2490.3,0.06951834]
[1749278617054,2.72019966,2490.4,2490.3,0.06951834]
[1749278618060,2.72019966,2490.4,2490.3,0.87209834]
[1749278618254,2.72019966,2490.4,2490.3,0.06951834]
[1749278618455,1.91764966,2490.4,2490.3,0.06951834]
[1749278618653,1.91764966,2490.4,2490.3,0.87209834]
[1749278618858,1.4684,2490.6,2490.4,0.80253]
[1749278619165,1.27093497,2490.5,2490.4,1.44483]
[1749278622658,2.07345497,2490.5,2490.4,0.6423]
[1749278624166,0.80255,2490.4,2490.3,0.87209834]
[1749278624466,0.80255,2490.4,2490.3,0.06951834]
[1749278625268,2.07354376,2490.4,2490.3,0.06951834]
[1749278633278,2.07354376,2490.4,2490.3,0.87209834]
[1749278633674,2.07354376,2490.4,2490.3,0.06951834]
[1749278634679,2.07354376,2490.4,2490.3,0.87209834]
[1749278635581,1.27099376,2490.4,2490.3,0.87209834]
[1749278636775,0.80254,2490.5,2490.4,0.80255]
[1749278636975,2.07332188,2490.5,2490.4,0.80255]
[1749278637176,2.07332188,2490.5,2490.3,0.87207834]
[1749278637369,1.27078188,2490.4,2490.3,0.87207834]
[1749278637770,2.07333188,2490.4,2490.3,0.87207834]
[1749278637972,1.27078188,2490.4,2490.3,0.87207834]
[1749278640783,2.07333188,2490.4,2490.3,0.87207834]
[1749278642487,2.07333188,2490.4,2490.3,0.06951834]
[1749278642982,2.07333188,2490.4,2490.3,0.87209834]
[1749278644279,1.27078188,2490.4,2490.3,0.87209834]
[1749278644480,0.80255,2490.4,2490.3,0.87209834]
[1749278644680,2.07333188,2490.4,2490.3,0.87209834]
[1749278644986,1.27078188,2490.4,2490.3,0.87209834]
[1749278645188,0.80254,2490.5,2490.4,0.80255]
[1749278645388,2.073407,2490.5,2490.3,0.87207834]
[1749278645682,0.80254,2490.5,2490.3,0.87207834]
[1749278645892,0.80254,2490.5,2490.4,0.80255]
[1749278646082,2.07340528,2490.5,2490.4,0.80255]
[1749278646376,2.07340528,2490.5,2490.3,1.54537834]
[1749278646686,0.80254,2490.5,2490.3,1.54537834]
[1749278646986,1.2708598,2490.4,2490.3,1.54537834]
[1749278647381,1.46841,2490.6,2490.5,0.80252]
[1749278647685,1.93676879,2490.6,2490.4,0.80253]
[1749278647886,1.27087256,2490.5,2490.4,0.80253]
[1749278649394,2.07339256,2490.5,2490.4,0.80253]
[1749278650592,1.27087256,2490.5,2490.4,0.80253]
[1749278651092,1.271108,2490.5,2490.4,2.14943]
[1749278651392,1.4684,2490.6,2490.4,2.14943]
[1749278651586,0.80252,2490.5,2490.4,2.14943]
[1749278651781,2.07357366,2490.5,2490.4,2.14943]
[1749278652187,1.27105366,2490.5,2490.4,2.14943]
[1749278653093,2.07357366,2490.5,2490.4,2.14943]
[1749278653292,2.07357366,2490.5,2490.4,1.3469]
[1749278653989,2.07357366,2490.5,2490.4,2.14946]
[1749278655194,1.27105366,2490.5,2490.4,2.14946]
[1749278655990,2.07357366,2490.5,2490.4,1.3469]
[1749278656290,2.07357366,2490.5,2490.4,2.14945]
[1749278657093,1.27105366,2490.5,2490.4,2.14945]
[1749278660994,2.07359366,2490.5,2490.4,0.06951834]
[1749278661198,2.07359366,2490.5,2490.4,0.87209834]
[1749278663501,1.27105366,2490.5,2490.4,0.87209834]
[1749278665701,1.46843,2490.6,2490.4,0.87209834]
[1749278665903,1.27178362,2490.5,2490.4,0.87209834]
[1749278666500,1.27178362,2490.5,2490.4,2.14229834]
[1749278680810,0.679,2490.7,2490.6,0.80251]
[1749278681020,1.95122526,2490.7,2490.6,0.80251]
[1749278684614,0.80253,2490.6,2490.4,0.06951834]
[1749278684814,5.28256526,2490.5,2490.4,0.06951834]
[1749278685016,5.91806526,2490.5,2490.4,0.06951834]
[1749278686616,5.11552526,2490.5,2490.4,0.87209834]
[1749278687016,6.39952526,2490.5,2490.4,0.87209834]
[1749278689520,3.19172526,2490.5,2490.4,0.87209834]
[1749278690622,3.99426526,2490.5,2490.4,0.87209834]
[1749278691727,3.99349807,2490.5,2490.4,0.87209834]
[1749278692124,3.19095807,2490.5,2490.4,0.87209834]
[1749278694624,3.99349807,2490.5,2490.4,0.87209834]
[1749278696619,3.19095807,2490.5,2490.4,0.87209834]
[1749278697321,3.99349807,2490.5,2490.4,0.87209834]
[1749278697519,3.99349807,2490.5,2490.4,0.06951834]
[1749278698323,3.99349807,2490.5,2490.4,0.87209834]
[1749278699426,3.99349807,2490.5,2490.4,0.06951834]
[1749278701121,3.99349807,2490.5,2490.1,0.00602494]
[1749278701122,0.80264,2490.2,2490.1,0.00602494]
[1749278701320,0.8028,2489.7,2489.4,1.3367]
[1749278701528,2.0068,2490.0,2489.3,0.6484]
[1749278701529,4.01063,2489.6,2489.3,0.6484]
[1749278701733,4.01063,2489.6,2489.3,0.80291]
[1749278701734,0.80287,2489.5,2489.3,0.80291]
[1749278701919,2.80297,2489.5,2489.3,0.80291]
[1749278702429,0.6801,2489.5,2489.4,0.8029]
[1749278703731,0.65172494,2489.6,2489.5,0.80287]
[1749278704930,0.00602494,2489.6,2489.5,0.80287]
[1749278705227,0.00602494,2489.6,2489.5,5.80287]
[1749278705434,0.00602494,2489.6,2489.5,0.80287]
[1749278705627,0.00602494,2489.6,2489.5,5.80287]
[1749278705830,0.00602494,2489.6,2489.5,7.79737]
[1749278707435,0.00602494,2489.6,2489.5,2.79737]
[1749278717749,0.00602494,2489.6,2489.5,1.43807]
[1749278718052,0.69552494,2489.6,2489.5,1.43807]
[1749278718749,1.49835494,2489.6,2489.5,0.6352]
[1749278718948,0.80288,2489.5,2489.3,0.06951834]
[1749278719249,1.49838494,2489.6,2489.4,0.80289]
[1749278719646,1.49838494,2489.6,2489.5,0.80287]
[1749278720848,1.49838494,2489.6,2489.5,0.87238834]
[1749278721039,1.49838494,2489.6,2489.5,0.06951834]
[1749278721244,1.49838494,2489.6,2489.5,0.87238834]
[1749278721647,1.49838494,2489.6,2489.5,0.06951834]
[1749278721851,1.49838494,2489.6,2489.5,0.87238834]
[1749278723350,1.49838494,2489.6,2489.5,0.06951834]
[1749278728054,0.69552494,2489.6,2489.5,0.87238834]
[1749278728256,0.00602494,2489.6,2489.5,0.87238834]
[1749278730057,0.00602494,2489.6,2489.5,2.17798834]
[1749278738267,1.50163,2490.3,2490.1,0.80265]
[1749278738560,0.80272,2490.0,2489.8,3.2078]
[1749278738864,0.80272,2490.0,2489.8,4.01056]
[1749278739059,0.6534,2489.9,2489.8,4.01056]
[1749278739961,1.45614,2489.9,2489.8,4.01056]
[1749278740168,0.6534,2489.9,2489.8,4.01056]
[1749278742067,0.6534,2489.9,2489.8,0.80276]
[1749278743657,0.6837,2490.0,2489.9,0.80274]
[1749278744063,0.67822494,2490.1,2490.0,0.8027]
[1749278748073,1.48089494,2490.1,2490.0,0.8027]
[1749278748269,1.48089494,2490.1,2489.9,1.49222]
[1749278748475,1.48089494,2490.1,2490.0,0.8027]
[1749278749172,0.67822494,2490.1,2490.0,0.8027]
[1749278750468,0.67822494,2490.1,2490.0,0.87221834]
[1749278750675,0.00602494,2490.1,2490.0,2.20641834]
[1749278752676,0.00602494,2490.1,2490.0,2.88411834]
[1749278755075,0.80869494,2490.1,2490.0,0.06951834]
[1749278755678,0.00602494,2490.1,2490.0,0.87221834]
[1749278755976,0.69902494,2490.1,2490.0,0.87221834]
[1749278756279,1.37712494,2490.1,2490.0,0.87221834]
[1749278758585,0.00602494,2490.1,2490.0,0.87221834]
[1749278758784,0.00602494,2490.1,2490.0,2.27441834]
[1749278763478,0.00602494,2490.1,2490.0,7.27441834]
[1749278763683,3.846,2490.8,2490.7,0.80248]
[1749278764381,0.6382,2490.8,2490.7,0.80248]
[1749278766189,0.6382,2490.8,2490.6,0.80249]
[1749278766589,0.6382,2490.8,2490.7,0.80248]
[1749278767282,0.693,2490.9,2490.8,0.80245]
[1749278767484,0.00602494,2491.0,2490.9,0.80241]
[1749278767691,0.00602494,2491.0,2490.9,2.80191]
[1749278768090,0.00602494,2491.0,2490.9,3.47031]
[1749278768291,3.2078,2491.4,2491.3,0.80229]
[1749278768487,3.2078,2491.4,2491.0,1.311]
[1749278768687,1.3059,2491.5,2491.1,4.5188]
[1749278768886,1.3059,2491.5,2491.2,1.311]
[1749278769293,1.3059,2491.5,2491.3,0.6885]
[1749278770089,2.10812,2491.5,2491.3,0.6885]
[1749278770986,0.80225,2491.4,2491.3,0.6885]
[1749278771189,2.10814,2491.5,2491.3,0.6885]
[1749278773092,0.80225,2491.4,2491.3,0.6885]
[1749278774287,3.2078,2491.8,2491.3,0.6885]
[1749278774288,0.80221,2491.6,2491.3,0.6885]
[1749278774487,0.80222,2491.5,2491.4,1.2692]
[1749278776802,2.70182,2491.7,2491.1,3.2078]
[1749278776995,3.2078,2491.4,2490.6,1.3405]
[1749278777297,0.80248,2490.7,2490.6,2.0287]
[1749278777498,0.80251,2490.6,2490.5,0.00602494]
[1749278788495,0.80251,2490.6,2490.5,1.32642494]
[1749278791204,0.80251,2490.6,2490.5,0.00602494]
[1749278791907,2.06741,2490.6,2490.5,0.00602494]
[1749278792106,2.06741,2490.6,2489.8,3.2078]
[1749278792107,0.80274,2489.9,2489.8,3.2078]
[1749278792409,0.80283,2489.6,2489.5,3.2078]
[1749278793306,0.69512494,2489.8,2489.5,3.2078]
[1749278793609,0.8028,2489.7,2489.6,1.3361]
[1749278793813,0.80881494,2489.8,2489.6,1.3361]
[1749278794313,0.80881494,2489.8,2489.7,0.6815]
[1749278795210,0.00602494,2489.8,2489.7,5.6815]
[1749278795414,0.00602494,2489.8,2489.7,6.4843]
[1749278796112,0.00602494,2489.8,2489.7,5.6815]
[1749278796313,0.00602494,2489.8,2489.7,6.95]
[1749278797512,0.00602494,2489.8,2489.7,1.95]
[1749278798709,0.80879494,2489.8,2489.7,1.95]
[1749278799013,0.80879494,2489.8,2489.5,3.2078]
[1749278799014,0.00602494,2489.8,2489.5,3.2078]
[1749278799319,3.8969,2490.2,2489.5,3.2078]
[1749278799320,0.6755,2490.4,2489.6,2.0527]
[1749278799511,0.80261,2490.3,2490.2,3.2078]
[1749278805916,1.46841,2490.3,2490.2,3.2078]
[1749278806318,0.80267,2490.1,2490.0,2.0157]
[1749278806519,0.80274,2489.9,2489.8,3.2078]
[1749278806718,0.80283,2489.6,2489.5,3.2078]
[1749278807218,0.80283,2489.6,2489.5,4.5346]
[1749278807417,0.80282,2489.7,2489.5,4.5346]
[1749278808019,3.2078,2491.2,2489.6,9.794]
[1749278808319,3.2078,2493.3,2491.2,4.017]
[1749278808518,1.3157,2493.2,2492.6,3.2078]
[1749278808722,7.71042348,2493.2,2492.9,3.2078]
[1749278808925,6.90874348,2493.2,2492.9,3.2078]
[1749278809622,7.71043348,2493.2,2492.9,3.2078]
[1749278809810,6.90874348,2493.2,2492.9,3.2078]
[1749278815621,0.6951,2493.6,2492.9,3.2078]
[1749278815826,1.3283,2494.1,2493.5,3.2078]
[1749278816129,7.60374348,2494.1,2493.6,0.80155]
[1749278816320,7.60374348,2494.1,2493.5,4.00935]
[1749278816524,7.60374348,2494.1,2493.5,4.00936]
[1749278816722,7.60374348,2494.1,2493.8,3.2078]
[1749278818530,7.60374348,2494.1,2493.9,0.80145]
[1749278818730,7.60374348,2494.1,2493.8,4.00927]
[1749278818930,6.27544348,2494.1,2493.9,0.80144]
[1749278819433,6.27544348,2494.1,2493.9,0.80145]
[1749278819634,6.27544348,2494.1,2493.8,4.00926]
[1749278820032,6.27544348,2494.1,2493.9,0.80144]
[1749278821435,6.27544348,2494.1,2494.0,0.80142]
[1749278821639,6.27544348,2494.1,2493.8,3.2078]
[1749278821836,6.27544348,2494.1,2494.0,0.80142]
[1749278822841,6.27544348,2494.1,2492.8,3.8552]
[1749278822842,5.6824,2494.1,2492.8,3.8552]
[1749278823142,5.6824,2494.1,2493.1,3.2078]
[1749278823143,5.29804,2494.0,2493.1,3.2078]
[1749278823345,0.6734,2493.9,2493.6,0.80153]
[1749278823535,1.2888,2493.8,2493.6,0.80153]
[1749278824042,1.2888,2493.8,2493.5,0.80156]
[1749278824242,1.2888,2493.8,2493.6,0.80155]
[1749278824541,1.2888,2493.8,2493.1,4.5674]
[1749278825139,0.80157,2493.6,2493.1,3.2078]
[1749278825341,3.2078,2493.6,2493.4,0.80159]
[1749278825535,1.3512,2493.5,2493.4,0.80159]
[1749278828345,1.3512,2493.5,2493.3,0.80162]
[1749278828546,1.3512,2493.5,2493.4,0.80161]
[1749278829041,2.1528,2493.5,2492.8,1.9818]
[1749278829245,3.2078,2493.3,2493.2,0.80166]
[1749278829449,3.2078,2493.3,2492.8,1.9818]
[1749278829743,2.15279,2493.5,2493.2,0.80166]
[1749278829943,1.3512,2493.5,2492.8,0.6474]
[1749278830251,0.80166,2493.3,2493.0,0.80172]
[1749278830549,1.2899,2493.2,2492.7,0.00602494]
[1749278830742,1.2899,2493.2,2492.7,3.21382494]
[1749278830948,1.2899,2493.2,2493.1,0.80171]
[1749278832849,3.8579,2493.4,2492.9,5.34]
[1749278833346,0.80165,2493.3,2493.0,0.80172]
[1749278833551,3.2078,2493.1,2493.0,0.80174]
[1749278833953,4.00953,2493.1,2492.9,5.34]
[1749278834249,3.2078,2493.1,2492.9,5.34]
[1749278834451,3.2078,2493.1,2492.9,6.14175]
[1749278834855,1.3989,2493.0,2492.9,6.14175]
[1749278835453,3.2078,2493.1,2493.0,0.80174]
[1749278835842,3.2078,2493.1,2493.0,2.20314]
[1749278837852,3.2078,2493.1,2493.0,5.40019351]
[1749278838756,3.2078,2493.6,2493.3,0.80161]
[1749278839057,3.2078,2493.6,2493.5,2.39202448]
[1749278841058,2.89739,2493.8,2493.3,7.19878598]
[1749278841253,2.89739,2493.8,2493.6,2.39246334]
[1749278841959,12.9878,2494.3,2493.6,2.39246334]
[1749278842160,3.2078,2494.3,2493.9,2.39246334]
[1749278842463,1.3821,2494.2,2494.0,2.39246334]
[1749278842658,2.18346,2494.2,2494.0,2.39246334]
[1749278842958,0.80138,2494.1,2494.0,2.39246334]
[1749278843153,2.18348,2494.1,2494.0,2.39246334]
[1749278843355,0.80142,2494.0,2493.9,2.39246334]
[1749278843553,1.3821,2494.0,2493.7,6.39716598]
[1749278843857,1.3821,2494.0,2493.9,2.3918973]
[1749278844054,1.3821,2494.0,2493.7,7.19867598]
[1749278844255,1.3821,2494.0,2493.9,2.39186344]
[1749278844453,1.3821,2494.0,2493.7,6.39716598]
[1749278844454,3.2078,2494.2,2493.7,6.39716598]
[1749278844755,3.2078,2494.2,2494.0,2.39193851]
[1749278845151,0.6897,2494.3,2494.0,3.19334851]
[1749278845351,2.0778,2494.3,2494.0,2.39193851]
[1749278845559,2.0778,2494.3,2494.0,3.19334851]
[1749278845857,2.0778,2494.3,2494.0,2.39193851]
[1749278846157,2.87913,2494.3,2494.0,2.39193851]
[1749278846357,0.5197873,2494.2,2494.0,2.39193851]
[1749278846960,1.9078873,2494.2,2494.0,2.39193851]
[1749278847556,2.7092473,2494.2,2494.0,2.39193851]
[1749278848548,0.80138,2494.1,2494.0,2.39193851]
[1749278852656,2.11158,2494.1,2494.0,2.39193851]
[1749278852855,0.80142,2494.0,2493.9,2.39796345]
[1749278853057,5.31942,2494.0,2493.9,0.00602494]
[1749278853752,10.31942,2494.0,2493.9,0.00602494]
[1749278853957,2.11162,2494.0,2493.9,0.00602494]
[1749278854160,10.31942,2494.0,2493.9,0.00602494]
[1749278855355,5.31942,2494.0,2493.9,0.00602494]
[1749278857762,10.31942,2494.0,2493.9,0.00602494]
[1749278858459,5.31942,2494.0,2493.9,0.00602494]
[1749278859562,10.31942,2494.0,2493.9,0.00602494]
[1749278863063,7.11162,2494.0,2493.9,0.00602494]
[1749278863263,10.31942,2494.0,2493.9,0.00602494]
[1749278863459,0.80151,2493.7,2493.6,2.39193851]
[1749278863665,0.80167,2493.2,2493.1,3.18936598]
[1749278863972,0.80174,2493.0,2492.9,3.18936598]
[1749278864263,0.80177,2492.9,2492.8,11.71716598]
[1749278864856,0.80177,2492.9,2492.8,8.5278]
[1749278865172,0.52667586,2493.0,2492.8,8.5278]
[1749278865173,0.80176,2493.0,2492.8,8.5278]
[1749278865465,0.80176,2493.0,2492.8,9.1623]
[1749278866966,0.80774494,2493.1,2492.8,9.1623]
[1749278867165,0.80774494,2493.1,2492.9,1.2844]
[1749278869070,0.80174,2493.0,2492.9,1.2844]
[1749278870472,0.80774494,2493.1,2492.9,1.2844]
[1749278871378,0.00602494,2493.1,2492.9,1.2844]
[1749278871874,0.80773494,2493.1,2492.9,1.2844]
[1749278872671,0.00602494,2493.1,2492.9,1.2844]
[1749278873471,0.80775494,2493.1,2492.9,1.2844]
[1749278876267,0.00602494,2493.1,2492.9,2.08616]
[1749278876466,0.00602494,2493.1,2493.0,0.80174]
[1749278876678,55.60690566,2494.9,2493.0,0.80174]
[1749278876679,0.64,2494.0,2493.0,1.9625]
[1749278876877,0.64,2494.0,2493.4,3.2078]
[1749278876878,0.675,2493.9,2493.4,3.2078]
[1749278877179,0.675,2493.9,2493.5,0.6556]
[1749278877378,0.80156,2493.6,2493.4,3.2078]
[1749278878083,0.80153,2493.7,2493.4,3.2078]
[1749278878484,0.80153,2493.7,2493.4,4.4759]
[1749278878771,0.80155,2493.6,2493.4,4.4759]
[1749278879467,0.80153,2493.7,2493.4,4.4759]
[1749278880978,0.80153,2493.7,2493.4,5.2775]
[1749278881877,0.80155,2493.6,2493.4,4.4759]
[1749278882279,0.80153,2493.7,2493.4,5.27751]
[1749278882676,0.80155,2493.6,2493.4,4.4759]
[1749278882979,0.80155,2493.6,2493.4,5.27751]
[1749278883176,0.80155,2493.6,2493.4,7.66225837]
[1749278883383,0.80152,2493.7,2493.4,8.46384837]
[1749278884379,0.8015,2493.8,2493.4,7.66225837]
[1749278884581,0.8015,2493.8,2493.4,8.46384837]
[1749278884781,0.80151,2493.7,2493.4,7.66225837]
[1749278884981,0.80154,2493.6,2493.4,7.66225837]
[1749278885384,0.80152,2493.7,2493.4,7.66225837]
[1749278885587,0.80154,2493.7,2493.4,7.66225837]
[1749278885774,0.80155,2493.6,2493.4,7.66225837]
[1749278886188,0.80155,2493.6,2493.4,8.46385837]
[1749278886990,3.2078,2494.0,2493.5,8.35535837]
[1749278887182,5.8676,2494.3,2493.9,0.80142]
[1749278887482,0.8014,2494.1,2493.9,0.00602494]
[1749278887683,0.8014,2494.0,2493.9,0.00602494]
[1749278887886,5.8676,2494.3,2493.9,0.00602494]
[1749278888086,4.5312,2494.3,2493.9,0.00602494]
[1749278888283,0.80136,2494.1,2493.9,0.00602494]
[1749278888480,0.80137,2494.0,2493.9,0.00602494]
[1749278888882,0.80135,2494.1,2493.9,0.00602494]
[1749278889079,0.80137,2494.0,2493.9,0.00602494]
[1749278889378,0.80136,2494.1,2493.9,0.00602494]
[1749278889582,0.80136,2494.1,2493.9,1.40372494]
[1749278889872,3.8868,2494.3,2493.9,1.40372494]
[1749278890079,0.80136,2494.1,2493.9,1.40372494]
[1749278890280,0.80135,2494.1,2493.9,1.40372494]
[1749278890482,0.80135,2494.1,2494.0,0.6777]
[1749278893686,0.80133,2494.2,2494.0,3.8855]
[1749278893890,0.679,2494.3,2494.0,5.2174]
[1749278894279,0.679,2494.3,2494.0,6.01876]
[1749278894483,1.48029,2494.3,2494.0,6.01876]
[1749278894984,0.80129,2494.3,2494.0,6.01876]
[1749278895188,0.80127,2494.4,2494.1,0.80133]
[1749278895377,0.80128,2494.3,2494.0,6.01875]
[1749278895586,3.2078,2494.6,2494.0,13.57646373]
[1749278895884,0.80123,2494.5,2494.2,0.80129]
[1749278896085,0.80123,2494.5,2494.3,1.3393]
[1749278896485,4.009,2494.6,2494.4,0.6999]
[1749278896890,0.80121,2494.5,2494.4,0.6999]
[1749278898488,3.2078,2494.6,2494.0,13.75702373]
[1749278898689,0.80061,2496.4,2494.5,11.4204273]
[1749278898886,3.2078,2496.9,2496.3,3.2078]
[1749278899086,3.2078,2496.9,2496.4,1.39481263]
[1749278899288,0.80046,2496.9,2496.6,3.2078]
[1749278899496,0.80042,2497.0,2496.6,3.2078]
[1749278899692,0.80045,2496.9,2496.6,3.2078]
[1749278899890,0.8005,2496.8,2496.6,3.2078]
[1749278900092,1.3666,2497.0,2496.6,3.2078]
[1749278900387,1.48229,2497.1,2496.9,3.2078]
[1749278900989,0.80041,2497.0,2496.9,3.2078]
[1749278901594,1.3851,2497.4,2496.9,3.2078]
[1749278901892,0.80038,2497.1,2496.9,3.2078]
[1749278902297,0.80039,2497.1,2496.9,3.2078]
[1749278902497,0.80041,2497.0,2496.9,3.2078]
[1749278902697,0.8004,2497.1,2496.9,3.2078]
[1749278902887,0.80041,2497.0,2496.9,3.2078]
[1749278903290,0.80038,2497.1,2496.9,3.2078]
[1749278903490,1.3851,2497.4,2496.9,3.2078]
[1749278903696,0.80034,2497.3,2496.9,3.2078]
[1749278903891,0.80035,2497.2,2496.9,4.4958]
[1749278904286,0.80033,2497.3,2496.9,4.4958]
[1749278904497,0.80038,2497.1,2496.9,4.4958]
[1749278904691,0.80041,2497.0,2496.9,3.2078]
[1749278909198,0.80051,2496.7,2496.5,3.2078]
[1749278909396,2.00079,2497.3,2496.5,4.5277]
[1749278909594,0.80048,2496.8,2496.5,4.5277]
[1749278909797,0.80046,2496.9,2496.5,4.5277]
[1749278910000,0.80046,2496.9,2496.8,3.2078]
[1749278910200,0.80043,2497.0,2496.8,3.2078]
[1749278910599,10.0558,2497.5,2496.8,3.2078]
[1749278910794,0.80044,2496.9,2496.8,3.2078]
[1749278911200,0.80042,2497.0,2496.8,3.8838]
[1749278911399,0.80032,2497.3,2496.8,10.13026]
[1749278911601,0.80038,2497.2,2496.9,1.3199]
[1749278912003,0.80033,2497.3,2496.9,2.12034]
[1749278912303,0.8003,2497.4,2497.0,0.8004]
[1749278912497,3.2078,2497.5,2497.1,1.2913]
[1749278912698,0.80039,2497.1,2496.8,9.3298]
[1749278912900,0.80039,2497.1,2496.8,10.6211]
[1749278913695,1.292,2497.4,2496.8,10.6211]
[1749278913899,0.80039,2497.1,2496.8,10.6211]
[1749278914098,0.80039,2497.1,2496.8,11.42156]
[1749278914500,0.80037,2497.2,2496.8,11.42156]
[1749278915002,0.8004,2497.1,2496.8,10.6211]
[1749278915202,0.80036,2497.2,2496.8,11.42156]
[1749278915403,1.292,2497.4,2496.8,10.6211]
[1749278915605,1.292,2497.4,2496.8,11.42156]
[1749278915606,0.8004,2497.1,2496.8,11.42156]
[1749278915807,0.80038,2497.1,2496.8,11.42156]
[1749278916102,0.80038,2497.1,2496.9,0.06951834]
[1749278916308,0.8004,2497.1,2496.9,0.06951834]
[1749278916904,0.80036,2497.2,2496.9,0.86995834]
[1749278917107,0.80036,2497.2,2496.9,1.46151834]
[1749278917306,0.80036,2497.2,2496.9,2.26194834]
[1749278917507,0.80039,2497.1,2496.9,1.46151834]
[1749278917706,0.80041,2497.0,2496.9,0.06951834]
[1749278918111,0.80044,2496.9,2496.8,3.8838]
[1749278918411,0.80044,2496.9,2496.8,3.2078]
[1749278919706,2.11514,2496.9,2496.8,3.2078]
[1749278919908,0.06951834,2497.2,2496.8,3.2078]
[1749278920109,0.80039,2497.1,2496.8,3.2078]
[1749278920305,0.80041,2497.0,2496.8,3.2078]
[1749278920508,0.80044,2496.9,2496.8,3.2078]
[1749278923417,0.80055,2496.6,2496.4,3.21381263]
[1749278923718,0.80054,2496.6,2496.4,3.21381263]
[1749278924722,1.44823,2496.7,2496.4,4.01441263]
[1749278925014,0.80056,2496.6,2496.4,3.21381263]
[1749278925210,0.6477,2496.7,2496.4,3.21381263]
[1749278925614,0.80057,2496.5,2496.4,3.21381263]
[1749278925808,0.80056,2496.6,2496.4,3.21381263]
[1749278927015,0.6477,2496.7,2496.4,3.21381263]
[1749278927211,0.80056,2496.6,2496.4,3.21381263]
[1749278927716,0.6477,2496.7,2496.4,3.21381263]
[1749278927717,0.80057,2496.5,2496.4,3.21381263]
[1749278927913,0.80056,2496.6,2496.4,3.21381263]
[1749278928518,0.80057,2496.5,2496.4,3.21381263]
[1749278928718,0.80056,2496.6,2496.4,3.21381263]
[1749278928923,0.80057,2496.5,2496.4,3.21381263]
[1749278930520,0.80056,2496.6,2496.4,3.21381263]
[1749278930726,0.80057,2496.5,2496.4,3.21381263]
[1749278930921,0.6477,2496.7,2496.4,3.21381263]
[1749278931126,0.80056,2496.6,2496.4,3.21381263]
[1749278931328,0.6477,2496.7,2496.4,3.21381263]
[1749278931523,0.80057,2496.5,2496.4,3.21381263]
[1749278933928,0.80056,2496.6,2496.4,3.21381263]
[1749278934127,0.80057,2496.5,2496.4,3.21381263]
[1749278936127,8.2078,2496.5,2495.8,3.17736869]
[1749278936333,3.2078,2496.2,2495.5,5.2416]
[1749278936530,3.2078,2496.2,2495.5,5.8853]
[1749278936941,0.80086,2495.6,2495.5,5.2139]
[1749278937238,1.3578,2496.1,2495.5,5.2139]
[1749278937533,0.80083,2495.7,2495.5,5.2139]
[1749278938332,0.80085,2495.7,2495.5,5.2139]